Cogmind - Beta 13 X1 *** ADVENTURER MODE // 2023.07.29 @ 14:05:36 Player: Minty Result: Self-destructed Performance ------------- Evolutions (8) 4000 Regions Visited (13) 2600 Robots Destroyed (205) 1025 Value Destroyed (10624) 10624 Prototype IDs (14) 280 Alien Tech Used (0) 0 Bonus (3788) 3788 TOTAL SCORE: 22317 Bonus ------- High Alert Combat Kills 2667 Follower Combat Kills 909 Entered Garrisons 200 Entered DSFs 500 Friendly Fire -488 Cogmind --------- Core Integrity 1450/1450 Matter 118/300 Energy 390/390 System Corruption 0% Temperature Cool (0) Movement Walking (190) Ox1 Location -2/Research Parts ------- > --- POWER (2) -------- Particle Reactor Micro Antimatter Reactor > --- PROPULSION (4) --- Flexi-carbon Leg Flexi-carbon Leg Myomer Leg > --- UTILITY (10) ----- Advanced Heat Sink Advanced Heat Sink Spectral Analyzer Long-range Sensor Array Advanced Target Analyzer Improved Transmission Jammer Centrium Light Armor Plating Graphene Brace Advanced System Shield > --- WEAPON (7) ------- Improved Arc Projector Dispersion Rifle Quantum Rifle Enhanced Quantum Rifle Enhanced Quantum Rifle Enhanced Quantum Rifle Railgun > --- INVENTORY (5) ---- Quantum Shading Machine Advanced Dynamic Insulation System Advanced Drone Bay (2/2) Gamma Bomb Array Peak State ------------ > --- POWER ------------ Particle Reactor Micro Antimatter Reactor > --- PROPULSION ------- Flexi-carbon Leg Flexi-carbon Leg Myomer Leg > --- UTILITY ---------- Advanced Heat Sink Advanced Heat Sink Spectral Analyzer Long-range Sensor Array Advanced Target Analyzer Improved Transmission Jammer Centrium Light Armor Plating Graphene Brace Advanced System Shield > --- WEAPON ----------- Improved Arc Projector Dispersion Rifle Quantum Rifle Enhanced Quantum Rifle Enhanced Quantum Rifle Enhanced Quantum Rifle Railgun > --- INVENTORY -------- Quantum Shading Machine Advanced Dynamic Insulation System Drone Bay Gamma Bomb Array [Rating: 152] Favorites ----------- Power Reinforced Fission Core Engine Improved Deuterium Engine Power Core Reinforced Fission Core Reactor Particle Reactor Propulsion Flexi-carbon Leg Leg Flexi-carbon Leg Wheel Wheel Utility Advanced Heat Sink Device Advanced Heat Sink Storage Small Storage Unit Processor Improved Target Analyzer Hackware System Shield Protection Hardened Heavy Armor Plating Weapon High-powered Field Laser Energy Gun High-powered Field Laser Energy Cannon Subdweller Beam Cannon Ballistic Gun KE Penetrator Ballistic Cannon Hardcell Cannon Launcher Gamma Bomb Array Impact Weapon Gravity Flail Slashing Weapon Greatsword Build | -11 -10 -10 -8 -7 -7 -6 -5 -5 -4 -4 -4 -3 -2 ------- Run | Jun Mat Sub Mat Fac Gar Fac Fac DSF Fac Was Fac Res Res Slots Evolved 16 | . . . 4 2 . 2 2 . 2 . . 2 2 Power 1 | . . . . . . 1 . . . . . . . Propulsion 2 | . . . . . . . . . 1 . . . 1 Utility 8 | . . . 2 2 . 1 . . 1 . . 1 1 Weapon 5 | . . . 2 . . . 2 . . . . 1 . Parts Attached 211 | . 1 7 9 41 7 11 2 17 36 6 29 45 . Power 21 | . . . 1 2 1 3 1 1 4 . 4 4 . Engine 8 | . . . 1 1 1 3 . . 1 . 1 . . Core 4 | . . . . 1 . . 1 1 1 . . . . Reactor 9 | . . . . . . . . . 2 . 3 4 . Propulsion 32 | . . . . 9 . 3 . 7 6 . 6 1 . Treads . | . . . . . . . . . . . . . . Leg 28 | . . . . 5 . 3 . 7 6 . 6 1 . Wheel 4 | . . . . 4 . . . . . . . . . Hover . | . . . . . . . . . . . . . . Flight . | . . . . . . . . . . . . . . Utility 62 | . 1 3 2 8 4 4 . 4 14 1 7 14 . Device 42 | . . 2 1 5 3 2 . 3 10 . 6 10 . Storage . | . . . . . . . . . . . . . . Processor 8 | . 1 . . . 1 . . . 2 1 1 2 . Hackware 2 | . . . . . . . . . 1 . . 1 . Protection 10 | . . 1 1 3 . 2 . 1 1 . . 1 . Artifact . | . . . . . . . . . . . . . . Weapon 96 | . . 4 6 22 2 1 1 5 12 5 12 26 . Energy Gun 59 | . . 1 4 13 1 1 . 1 12 4 7 15 . Energy Cannon 7 | . . 2 1 2 1 . . 1 . . . . . Ballistic Gun 19 | . . 1 1 4 . . . 1 . . 4 8 . Ballistic Cannon 4 | . . . . . . . . 2 . . 1 1 . Launcher 5 | . . . . 3 . . . . . . . 2 . Special Weapon . | . . . . . . . . . . . . . . Impact Weapon 1 | . . . . . . . . . . 1 . . . Slashing Weapon 1 | . . . . . . . 1 . . . . . . Piercing Weapon . | . . . . . . . . . . . . . . Special Melee Weapon . | . . . . . . . . . . . . . . Unidentified Prototypes 14 | . . 1 2 4 . . . 1 1 2 . 3 . Corrupted Parts 5 | . . . . . . . . . 2 . . 3 . System Corruption 19 | . . . . . . . . . 3 . . 16 . Parts Lost 47 | . . . . 3 . 3 . 10 17 . 8 6 . Power 3 | . . . . . . . . . 2 . 1 . . Propulsion 8 | . . . . 2 . . . 1 3 . 1 1 . Utility 19 | . . . . 1 . 3 . 5 6 . 2 2 . Weapon 17 | . . . . . . . . 4 6 . 4 3 . Highest Loss Streak 10 | . . . . 2 . 1 . 8 10 . 2 2 . To Critical Strikes 1 | . . . . . . . . 1 . . . . . Average Slot Usage (%) 93 | . 92 92 84 90 93 97 94 86 80 100 99 96 . Engine 4 | . 14 14 9 4 4 12 7 4 1 . . . . Core 2 | . . . . 2 2 . 3 6 7 5 5 . . Reactor 2 | . . . . . . . . . 1 5 4 8 . Leg 14 | . 28 28 18 11 15 13 11 10 12 15 14 12 . Device 25 | . . 8 13 28 31 34 23 21 23 21 24 25 . Processor 4 | . 7 2 . . 1 6 5 . 1 14 11 10 . Hackware 1 | . . . . . . . . . 1 5 5 4 . Protection 4 | . . 6 9 7 5 2 11 12 3 . . . . Energy Gun 24 | . 14 14 22 26 30 26 23 16 16 30 27 24 . Energy Cannon 1 | . . 10 9 1 . . . 1 2 . . . . Ballistic Gun 1 | . 14 3 3 1 . . . . . . 3 4 . Naked Turns . | . . . . . . . . . . . . . . Heaviest Build 87 | 14 14 35 48 55 50 58 64 78 86 70 79 87 . Greatest Support 90 | 20 20 20 20 35 35 40 40 50 75 60 70 90 . Greatest Overweight (x) 16 | . . 1 2 16 1 1 1 3 1 1 1 1 . Average Overweight (x) . | . . . 1 1 . . 1 1 . 1 . . . Largest Inventory Capacity 8 | . 8 8 5 5 5 5 5 5 5 5 5 5 . Average Capacity 5 | . 8 5 5 5 5 5 5 5 5 5 5 5 . Most Carried 8 | . 6 8 5 5 5 5 4 5 5 5 5 5 . Average Carried 4 | . 6 5 3 4 5 4 3 4 4 5 4 4 . Final Capacity 8 | 8 8 5 5 5 5 5 5 5 5 5 5 5 5 Final Carried 6 | 6 6 5 5 5 5 5 4 5 5 5 5 5 5 Class Distribution -------------------- 37% | Scavenger-Executioner 30% | Scavenger-Tank 6% | Tank 5% | Skirmisher 4% | Subdweller-Mutant 4% | Gunner 4% | Subdweller-Tank Dominant Class ---------------- Mutant | -10/Materials Subdweller-Mutant | -10/Subcaves Subdweller-Tank | -8/Materials Scavenger-Tank | -7/Factory Scavenger-Tank | -7/Garrison Skirmisher | -6/Factory Scavenger-Tank | -5/Factory Scavenger-Tank | -5/DSF Scavenger-Executioner | -4/Factory Scavenger-Executioner | -4/Waste Scavenger-Executioner | -4/Factory Scavenger-Executioner | -3/Research Scavenger-Executioner | -2/Research Resources | -11 -10 -10 -8 -7 -7 -6 -5 -5 -4 -4 -4 -3 -2 ----------- Run | Jun Mat Sub Mat Fac Gar Fac Fac DSF Fac Was Fac Res Res Matter Collected 3633 | 200 6 83 93 712 20 169 . 211 802 40 507 790 . Remotely . | . . . . . . . . . . . . . . Salvage Created 11676 | . 9 271 132 2832 20 752 . 616 1716 1731 1941 1656 . Parts 459 | . 2 17 7 134 . 25 . 30 73 19 76 76 . Haulers Intercepted 5 | . . . 1 2 . . . . . . 1 1 . Recyclers Shooed 4 | . . . . 2 . 1 . . . . . 1 . Parts Field Recycled . | . . . . . . . . . . . . . . Retrieved Matter . | . . . . . . . . . . . . . . Parts Self-Destructed 11 | . . 11 . . . . . . . . . . . Prevented . | . . . . . . . . . . . . . . Kills | -11 -10 -10 -8 -7 -7 -6 -5 -5 -4 -4 -4 -3 -2 ------- Run | Jun Mat Sub Mat Fac Gar Fac Fac DSF Fac Was Fac Res Res Combat Hostiles Destroyed 164 | . . 6 2 50 . 13 . 10 30 6 30 17 . Melee 1 | . . . . . . . . 1 . . . . . Guns 116 | . . 5 1 36 . 11 . 6 18 1 27 11 . Cannons 19 | . . 1 1 4 . . . 2 11 . . . . AOE 13 | . . . . 9 . . . . 1 . . 3 . Classes Destroyed 22 | . 1 5 1 7 . 2 . 2 2 1 1 . . Worker 10 | . . . . 6 . 1 . . . . 1 2 . Builder 10 | . . . . 5 . . . . 1 . 1 3 . Tunneler 3 | . . . . 1 . . . . 1 . . 1 . Hauler 5 | . . . 1 2 . . . . . . 1 1 . Recycler 8 | . . . . 7 . . . . . . . 1 . Mechanic 1 | . . . . . . . . . . . 1 . . Operator 2 | . . . . . . . . . 1 . . 1 . Drone 1 | . . . . . . . . . 1 . . . . Watcher 6 | . 1 . . 2 . . . . . . 1 2 . Swarmer 28 | . . 2 2 11 . . . . 4 . 9 . . Grunt 62 | . . 1 . 26 . 8 . 2 12 . 10 3 . Brawler 2 | . . . . . . 1 . . . . 1 . . Duelist 5 | . . . . 2 . . . . . . 3 . . Protector 1 | . . . . . . 1 . . . . . . . Sentry 18 | . . 1 . 6 . 3 . . 2 . 2 4 . Specialist 3 | . . . . . . . . 3 . . . . . Hunter 11 | . . . . 2 . . . 1 4 . 2 2 . Programmer 23 | . . . . 3 . . . 2 8 . 3 7 . Heavy 3 | . . . . . . . . 2 . . . 1 . Compactor 6 | . . . . . . . . . . 6 . . . Cobbler 1 | . . 1 . . . . . . . . . . . Subdweller 3 | . . 2 1 . . . . . . . . . . Best Kill Streak 19 | . 1 2 2 19 . 6 . 3 4 4 9 4 . Combat Bots Only 13 | . . 2 2 13 . 5 . 3 4 4 7 3 . Max Kills in Single Turn 7 | . 1 1 2 7 . 1 . 1 3 1 2 2 . Gunslinging 2 | . . . . 1 . . . . 2 . 1 . . Exploded 3 | . . . . 3 . . . . 1 . . 1 . Melee 1 | . . . . . . . . 1 . . . . . Uniques/NPCs Destroyed . | . . . . . . . . . . . . . . Combat | -11 -10 -10 -8 -7 -7 -6 -5 -5 -4 -4 -4 -3 -2 -------- Run | Jun Mat Sub Mat Fac Gar Fac Fac DSF Fac Was Fac Res Res Damage Taken 9658 | . . 160 34 1800 . 434 . 1027 2690 . 1715 1798 . Core 1138 | . . 27 7 264 . 4 . 93 406 . 90 247 . Absorbed by Shields . | . . . . . . . . . . . . . . Ignored by Resistances 2795 | . . 49 10 554 . 120 . 303 792 . 487 480 . Regen/Repaired (Parts) 510 | . . . . . . . . . 89 143 278 . . Core Remaining (%) 84 | 100 . 89 98 . 62 99 . 90 . . 56 81 . Volleys Fired 345 | . 2 18 5 95 8 22 . 22 49 9 62 53 . Largest 7 | . 2 2 4 4 4 4 . 4 6 6 6 7 . Hottest 535 | . 60 140 230 279 289 300 . 300 404 404 471 535 . Shots Fired 1389 | . 4 36 18 320 31 76 . 82 225 54 302 241 . Gun 1249 | . 4 29 13 297 30 76 . 65 149 54 302 230 . Cannon 117 | . . 7 5 11 1 . . 17 76 . . . . Launcher 23 | . . . . 12 . . . . . . . 11 . Special . | . . . . . . . . . . . . . . Kinetic 216 | . 2 11 1 20 . . . 15 65 . 39 63 . Thermal 1011 | . . 25 10 227 24 74 . 58 136 54 255 148 . Explosive 5 | . . . . . . . . . . . . 5 . Electromagnetic 157 | . 2 . 7 73 7 2 . 9 24 . 8 25 . Robot Hit Streak 31 | . 4 15 4 28 8 26 . 25 28 31 20 20 . Robot Miss Streak 9 | . . 3 3 2 . 2 . 3 4 1 2 9 . Penetration Max 2 | . . . . . . . . . . . 1 2 . Secondary Targets 30 | . . . . 13 . 3 . 1 3 1 8 1 . Max Gunslinging Chain 2 | . . . . 1 . 1 . 1 2 1 2 1 . Shots Hit Robots 963 | . 4 24 8 224 2 64 . 72 156 51 197 161 . Core Hits 491 | . 2 11 6 138 4 42 . 36 77 13 88 74 . Critical Kills 9 | . . . . . . . . . 2 . 2 5 . Critical Parts Destroyed 7 | . . . . . . . . . 1 . 2 4 . Critical Strikes 97 | . . . . 16 . 4 . 2 21 7 19 28 . Burn 71 | . . . . 16 . 4 . 2 12 7 15 15 . Destroy 18 | . . . . . . . . . 3 . 4 11 . Blast 6 | . . . . . . . . . 6 . . . . Corrupt 2 | . . . . . . . . . . . . 2 . Melee Attacks 2 | . . . . . . . 1 1 . . . . . Impact . | . . . . . . . . . . . . . . Slashing 2 | . . . . . . . 1 1 . . . . . Piercing . | . . . . . . . . . . . . . . Sneak Attacks . | . . . . . . . . . . . . . . Combat Hostiles . | . . . . . . . . . . . . . . Follow-up Attacks . | . . . . . . . . . . . . . . Damage Inflicted 26190 | . 55 426 213 7410 75 1540 . 1968 4378 1061 4761 4303 . Guns 19841 | . 32 340 130 4507 75 1540 . 1460 2572 1061 4761 3363 . Cannons 2532 | . . 86 83 213 . . . 454 1696 . . . . Explosions 3747 | . 23 . . 2690 . . . . 110 . . 924 . Melee 54 | . . . . . . . . 54 . . . . . Ramming 16 | . . . . . . . . . . . . 16 . Kinetic 5242 | . 10 112 11 2070 . . . 411 1545 . 595 488 . Thermal 17709 | . 23 314 141 4262 57 1511 . 1373 2313 1061 4043 2611 . Explosive 824 | . . . . . . . . . 110 . . 714 . Electromagnetic 2345 | . 22 . 61 1078 18 29 . 130 410 . 123 474 . Impact . | . . . . . . . . . . . . . . Slashing 54 | . . . . . . . . 54 . . . . . Piercing . | . . . . . . . . . . . . . . Highest Corruption 24 | . . . . 1 2 . . . 14 14 17 24 . Average Corruption 8 | . . . . 1 1 . . . 9 14 14 12 . Corruption Purged . | . . . . . . . . . . . . . . Corruption Blocked . | . . . . . . . . . . . . . . Effects 143 | . . . . 5 19 . . . 21 18 51 29 . Message Errors 30 | . . . . 1 6 . . . 2 4 10 7 . Matter Fused 27 | . . . . 1 3 . . . 6 4 5 8 . Heat Flow Errors 17 | . . . . 1 2 . . . 2 2 8 2 . Energy Discharges 18 | . . . . 1 5 . . . . 4 6 2 . Parts Rejected 1 | . . . . . . . . . . . 1 . . Parts Fused 1 | . . . . . . . . . . . 1 . . Data Loss (minor) 17 | . . . . . 1 . . . 4 2 5 5 . Data Loss (major) 9 | . . . . . 1 . . . . . 5 3 . Misfires 8 | . . . . 1 . . . . 2 1 2 2 . Alerts 3 | . . . . . 1 . . . 2 . . . . Weapon Failures 12 | . . . . . . . . . 3 1 8 . . Overload Shots . | . . . . . . . . . . . . . . Overflow Damage 181 | . . . . 120 . . . . 61 . . . . Projectiles 61 | . . . . . . . . . 61 . . . . Explosions 120 | . . . . 120 . . . . . . . . . Melee . | . . . . . . . . . . . . . . Knockbacks 14 | . . . . . . . . . 14 . . . . Impact . | . . . . . . . . . . . . . . Kinetic 14 | . . . . . . . . . 14 . . . . Secondary . | . . . . . . . . . . . . . . Self-Inflicted Damage 303 | . . . . 89 . . . . 63 . . 151 . Shots 22 | . . . . 4 . . . . 2 . . 16 . Rammed . | . . . . . . . . . . . . . . Targets Rammed 2 | . . . . . . . . . . . . 2 . Kicked 2 | . . . . . . . . . . . . 2 . Crushed . | . . . . . . . . . . . . . . Highest Temperature 462 | . . 54 349 282 175 310 . 130 462 221 271 437 . Average Temperature 89 | . . 15 78 72 52 103 . 42 117 60 85 144 . Received Heat Transfer 1994 | . . 63 9 753 . 213 . 54 449 . 372 81 . Effects 10 | . . . . . . . . . 1 2 . 7 . Shutdowns 2 | . . . . . . . . . 1 . . 1 . Interference 8 | . . . . . . . . . . 2 . 6 . Siege Activations . | . . . . . . . . . . . . . . Robots Corrupted 2 | . . . . . . . . . . . . 2 . Combat Hostiles 1 | . . . . . . . . . . . . 1 . Parts Fried 9 | . . . . 2 . . . . . . 1 6 . Impact Corruptions . | . . . . . . . . . . . . . . Robots Melted 15 | . . . . 1 . 2 . 2 . 5 3 2 . Combat Hostiles 14 | . . . . 1 . 2 . 1 . 5 3 2 . Parts Melted 137 | . . . 1 24 . 11 . 11 16 15 22 37 . Heat Transferred 34049 | . . 386 186 7228 112 3096 . 2863 5286 2780 6725 5387 . Parts Sabotaged 4 | . . . . . . . . . 4 . . . . Parts Stolen . | . . . . . . . . . . . . . . Parts Stripped . | . . . . . . . . . . . . . . Power Chain Reactions 3 | . 1 . . 2 . . . . . . . . . Missiles Intercepted . | . . . . . . . . . . . . . . Alert | -11 -10 -10 -8 -7 -7 -6 -5 -5 -4 -4 -4 -3 -2 ------- Run | Jun Mat Sub Mat Fac Gar Fac Fac DSF Fac Was Fac Res Res Peak Influence 1402 | . 29 . 368 934 1402 709 408 436 940 304 1211 633 . Initial 637 | . . . . 143 453 637 254 251 193 274 63 441 157 Average 572 | . 18 . 188 466 874 624 334 359 591 273 886 488 . Maximum Alert Level 4 | . . . 1 3 4 3 2 2 3 1 4 2 . Low Security (%) 9 | . 100 . 54 20 . . . . 9 13 6 . . Level 1 17 | . . . 45 20 . . 46 61 19 86 9 8 . Level 2 40 | . . . . 37 16 78 53 38 25 . 4 91 . Level 3 24 | . . . . 22 54 21 . . 45 . 50 . . Level 4 7 | . . . . . 28 . . . . . 29 . . Level 5 . | . . . . . . . . . . . . . . High Security . | . . . . . . . . . . . . . . Max Security . | . . . . . . . . . . . . . . Sterilizations 1 | . . . . . . . . 1 . . . . . Squads Dispatched 47 | . . . . 18 . 3 1 2 8 . 10 5 . Investigation 8 | . . . . 4 . . . . 2 . 1 1 . Extermination 12 | . . . . 3 . 2 . . 2 . 2 3 . Reinforcement 11 | . . . . 6 . . . 2 . . 2 1 . Assault 11 | . . . . 1 . 1 1 . 3 . 5 . . Garrison 5 | . . . . 4 . . . . 1 . . . . Intercept . | . . . . . . . . . . . . . . Searches Triggered . | . . . . . . . . . . . . . . Construction Impeded 3 | . . . . 3 . . . . . . . . . Haulers Reinforced 2 | . . . . 2 . . . . . . . . . Active Scanning Responses 1 | . . . . . . . . . 1 . . . . Cargo Convoy Interrupts . | . . . . . . . . . . . . . . Stealth | -11 -10 -10 -8 -7 -7 -6 -5 -5 -4 -4 -4 -3 -2 --------- Run | Jun Mat Sub Mat Fac Gar Fac Fac DSF Fac Was Fac Res Res Distress Signals 6 | . . . 2 3 . . . . . . 1 . . Communications Jammed 1 | . . . . . . . . . . . . 1 . Distress Signals 1 | . . . . . . . . . . . . 1 . Times Spotted 220 | . 1 9 11 59 . 14 . 11 32 5 55 23 . Peak Tracking Total 10 | . 1 2 7 7 . 5 . 2 6 2 10 4 . Tactical Retreats 4 | . . . . . . . . 1 . . 2 1 . Traps | -11 -10 -10 -8 -7 -7 -6 -5 -5 -4 -4 -4 -3 -2 ------- Run | Jun Mat Sub Mat Fac Gar Fac Fac DSF Fac Was Fac Res Res Traps Triggered 6 | . . . . . 1 . . 1 2 . 1 1 . Indirectly 1 | . . . . . . . . . . . . 1 . Trap Hack Attempts . | . . . . . . . . . . . . . . Triggered . | . . . . . . . . . . . . . . Disarmed . | . . . . . . . . . . . . . . Reprogrammed . | . . . . . . . . . . . . . . Reused . | . . . . . . . . . . . . . . Traps Extracted . | . . . . . . . . . . . . . . Installed . | . . . . . . . . . . . . . . Triggered . | . . . . . . . . . . . . . . Machines | -11 -10 -10 -8 -7 -7 -6 -5 -5 -4 -4 -4 -3 -2 ---------- Run | Jun Mat Sub Mat Fac Gar Fac Fac DSF Fac Was Fac Res Res Machines Disabled 30 | . 2 . . 7 6 1 1 . 7 . 6 . . Max in Single Turn 3 | . 1 . . 2 2 1 1 . 3 . 1 . . Garrison Access 4 | . . . . 1 . . 1 . 1 . 1 . . Garrison Relay 4 | . . . . . 4 . . . . . . . . Phase Generator 1 | . . . . . 1 . . . . . . . . Machines Repaired . | . . . . . . . . . . . . . . Machines Sabotaged . | . . . . . . . . . . . . . . Overloaded Fab Kills . | . . . . . . . . . . . . . . Hacking | -11 -10 -10 -8 -7 -7 -6 -5 -5 -4 -4 -4 -3 -2 --------- Run | Jun Mat Sub Mat Fac Gar Fac Fac DSF Fac Was Fac Res Res Machines Accessed 23 | . 2 . . 9 4 2 1 . 3 . 1 1 . Terminals 12 | . 2 . . 3 4 . 1 . . . 1 1 . Fabricators 4 | . . . . 1 . 1 . . 2 . . . . Repair Stations 1 | . . . . . . . . . 1 . . . . Recycling Units 2 | . . . . 1 . 1 . . . . . . . Scanalyzers 2 | . . . . 2 . . . . . . . . . Garrison Access 2 | . . . . 2 . . . . . . . . . Total Hacks 71 | . 9 . . 25 10 6 3 . 7 . 4 7 . Successful 29 | . 4 . . 13 3 3 1 . 4 . 1 . . Failed 42 | . 5 . . 12 7 3 2 . 3 . 3 7 . Catastrophic 2 | . . . . . 1 . . . 1 . . . . Database Lockouts . | . . . . . . . . . . . . . . Manual 33 | . 3 . . 8 5 1 . . 4 . 5 7 . Terminals 44 | . 9 . . 11 10 . 3 . . . 4 7 . Fabricators 10 | . . . . 2 . 4 . . 4 . . . . Repair Stations 3 | . . . . . . . . . 3 . . . . Recycling Units 4 | . . . . 2 . 2 . . . . . . . Scanalyzers 8 | . . . . 8 . . . . . . . . . Garrison Access 2 | . . . . 2 . . . . . . . . . Terminal Hacks 7 | . 2 . . 1 2 . 1 . . . 1 . . Open Door 1 | . . . . . 1 . . . . . . . . Open DSF 1 | . . . . . . . 1 . . . . . . Branch Access Points 1 | . . . . . . . . . . . 1 . . Emergency Access Points 1 | . 1 . . . . . . . . . . . . Alert Level 1 | . . . . 1 . . . . . . . . . Locate Traps 1 | . 1 . . . . . . . . . . . . Security Stations 1 | . . . . . 1 . . . . . . . . Fabricator Hacks . | . . . . . . . . . . . . . . Repair Station Hacks 2 | . . . . . . . . . 2 . . . . Scan Component 1 | . . . . . . . . . 1 . . . . Repair 1 | . . . . . . . . . 1 . . . . Recycling Unit Hacks 2 | . . . . . . 2 . . . . . . . Process 1 | . . . . . . 1 . . . . . . . Report Inventory 1 | . . . . . . 1 . . . . . . . Scanalyzer 7 | . . . . 7 . . . . . . . . . Insert Component 2 | . . . . 2 . . . . . . . . . Analyze 5 | . . . . 5 . . . . . . . . . Garrison Access Hacks 2 | . . . . 2 . . . . . . . . . Unlock Access 2 | . . . . 2 . . . . . . . . . Unauthorized Hacks 9 | . 2 . . 3 1 1 . . 2 . . . . Terminals 5 | . 2 . . 2 1 . . . . . . . . Botnet 4 | . 2 . . 2 . . . . . . . . . Override 1 | . . . . . 1 . . . . . . . . Fabricators 4 | . . . . 1 . 1 . . 2 . . . . Fabnet 4 | . . . . 1 . 1 . . 2 . . . . Repair Stations . | . . . . . . . . . . . . . . Recycling Units . | . . . . . . . . . . . . . . Scanalyzers . | . . . . . . . . . . . . . . Garrison Access . | . . . . . . . . . . . . . . Data Cores Recovered 2 | . . . . . . . . . 1 . . 1 . Used . | . . . . . . . . . . . . . . Hacking Detections 18 | . 2 . . 7 2 2 . . 3 . 1 1 . Full Trace Events 9 | . . . . 4 2 . . . 1 . 1 1 . Feedback Events 2 | . . . . 1 1 . . . . . . . . Corruption 2 | . . . . 1 1 . . . . . . . . Feedback Blocked . | . . . . . . . . . . . . . . Robot Schematics Acquired . | . . . . . . . . . . . . . . Robots Built . | . . . . . . . . . . . . . . Authchips . | . . . . . . . . . . . . . . Time . | . . . . . . . . . . . . . . Total Robot Build Rating . | . . . . . . . . . . . . . . Part Schematics Acquired 1 | . . . . 1 . . . . . . . . . Parts Built . | . . . . . . . . . . . . . . Authchips . | . . . . . . . . . . . . . . Time . | . . . . . . . . . . . . . . Total Part Build Rating . | . . . . . . . . . . . . . . Parts Repaired 1 | . . . . . . . . . 1 . . . . Time 25 | . . . . . . . . . 25 . . . . Parts Recycled . | . . . . . . . . . . . . . . Recycled Matter . | . . . . . . . . . . . . . . Retrieved Matter . | . . . . . . . . . . . . . . Retrieved Components . | . . . . . . . . . . . . . . Parts Scanalyzed 2 | . . . . 2 . . . . . . . . . Part Schematics Acquired 1 | . . . . 1 . . . . . . . . . Parts Damaged . | . . . . . . . . . . . . . . Bothacking | -11 -10 -10 -8 -7 -7 -6 -5 -5 -4 -4 -4 -3 -2 ------------ Run | Jun Mat Sub Mat Fac Gar Fac Fac DSF Fac Was Fac Res Res Used RIF Installer . | . . . . . . . . . . . . . . Robots Hacked 2 | . . . . . . 1 . . . . 1 . . Non-combat . | . . . . . . . . . . . . . . Combat 2 | . . . . . . 1 . . . . 1 . . Robot Hacks Applied . | . . . . . . . . . . . . . . Relay Couplers Released 25 | . . . . 2 16 . 3 . 3 . 1 . . Machine Destruction 25 | . . . . 2 16 . 3 . 3 . 1 . . Fabnet Peak Effective % 4 | . . . . . . 3 4 4 1 1 1 . . Autooverrided 2 | . . . . . . 1 . . . . 1 . . Robots Rewired 3 | . . . . . 3 . . . . . . . . Allies Hacked . | . . . . . . . . . . . . . . Hacks Repelled . | . . . . . . . . . . . . . . Allies | -11 -10 -10 -8 -7 -7 -6 -5 -5 -4 -4 -4 -3 -2 -------- Run | Jun Mat Sub Mat Fac Gar Fac Fac DSF Fac Was Fac Res Res Total Allies 29 | . . 5 . . 3 1 . . . 19 1 . . Largest Group 19 | . . 5 5 2 3 4 . . . 19 19 . . Highest-Rated Group 702 | . . 95 95 38 85 122 . . . 702 702 . . Highest-Rated Ally 50 | . . 19 19 19 32 37 . . . 50 50 . . Total Orders 1 | . . . . . . . . . 1 . . . . EXPLORE 1 | . . . . . . . . . 1 . . . . Ally Attacks 149 | . . 3 30 12 . 24 . . . . 80 . . Total Damage 5150 | . . 43 774 196 . 711 . . . . 3426 . . Kills 38 | . . . 12 1 . 2 . . . . 23 . . Allies Corrupted . | . . . . . . . . . . . . . . Allies Melted . | . . . . . . . . . . . . . . Intel | -11 -10 -10 -8 -7 -7 -6 -5 -5 -4 -4 -4 -3 -2 ------- Run | Jun Mat Sub Mat Fac Gar Fac Fac DSF Fac Was Fac Res Res Robot Analysis Total . | . . . . . . . . . . . . . . Derelict Logs Recovered 1 | . . 1 . . . . . . . . . . . Drone Launches 2 | . . . . . . . . . 2 . . . . Drone Recoveries . | . . . . . . . . . . . . . . Exploration | -11 -10 -10 -8 -7 -7 -6 -5 -5 -4 -4 -4 -3 -2 ------------- Run | Jun Mat Sub Mat Fac Gar Fac Fac DSF Fac Was Fac Res Res Turns Passed 10628 | . 101 687 354 2407 1307 1049 121 413 768 460 1226 1735 . Spaces Moved 4986 | 1 46 410 137 1154 694 487 60 146 267 217 543 824 . Core 3 | . . . . 3 . . . . . . . . . Treads . | . . . . . . . . . . . . . . Legs 4611 | 1 46 410 137 779 694 487 60 146 267 217 543 824 . Wheels 372 | . . . . 372 . . . . . . . . . Hover . | . . . . . . . . . . . . . . Flight . | . . . . . . . . . . . . . . Fastest Speed 105 | 120 120 120 190 105 125 125 195 190 120 190 120 120 . Average Speed 177 | 120 120 146 235 172 176 194 195 201 187 190 172 175 . Slowest Speed 850 | 120 120 190 260 850 195 195 195 330 190 190 190 190 . Overloaded Moves . | . . . . . . . . . . . . . . Propulsion Burnouts . | . . . . . . . . . . . . . . Robots Hopped . | . . . . . . . . . . . . . . Cave-ins Triggered . | . . . . . . . . . . . . . . Exploration Rate (%) 31 | 2 9 32 18 34 72 13 1 90 7 93 14 19 . Regions Visited 13 Branch Regions 1 Pre-discovered Areas 1 | . . 1 . . . . . . . . . . . Known Exits Taken 2 | . . . . 1 . . 1 . . . . . . Unknown Exits Taken 7 | 1 1 1 1 . . 1 . . . . 1 1 . Scrap Searched . | . . . . . . . . . . . . . . Spaces Dug . | . . . . . . . . . . . . . . Terrain Destroyed 333 | . 1 1 1 120 73 . . 2 74 . 9 52 . Melee . | . . . . . . . . . . . . . . Projectile 33 | . . 1 1 . . . . 2 17 . 9 3 . AOE 300 | . 1 . . 120 73 . . . 57 . . 49 . Terrain Rammed . | . . . . . . . . . . . . . . Walls Destroyed . | . . . . . . . . . . . . . . Machines Disabled . | . . . . . . . . . . . . . . Actions | -11 -10 -10 -8 -7 -7 -6 -5 -5 -4 -4 -4 -3 -2 --------- Run | Jun Mat Sub Mat Fac Gar Fac Fac DSF Fac Was Fac Res Res Total 5909 | . 87 462 159 1361 755 532 62 202 392 240 662 995 . Wait 165 | . 39 10 . 30 1 4 . 5 30 3 14 29 . Move 4973 | . 45 409 136 1154 691 486 59 145 267 216 542 823 . Hop . | . . . . . . . . . . . . . . Pick Up 21 | . . 5 2 6 . 2 . . . . 1 5 . Fast Attach 118 | . 1 4 3 22 2 6 . 10 27 3 15 25 . Attach 23 | . . 1 4 3 . 1 1 2 5 . 2 4 . Detach 17 | . . 3 4 1 . . . 1 3 . 1 4 . Swap 70 | . . 2 2 16 5 4 1 5 4 3 12 16 . Drop 115 | . . 8 2 33 4 7 . 6 2 6 13 34 . Fire 345 | . 2 18 5 95 8 22 . 22 49 9 62 53 . Melee 2 | . . . . . . . 1 1 . . . . . Ram . | . . . . . . . . . . . . . . Kick 2 | . . . . . . . . . . . . 2 . Crush . | . . . . . . . . . . . . . . Escape Stasis 10 | . . . . . . . . 5 5 . . . . Rewire 44 | . . . . . 44 . . . . . . . . Trap . | . . . . . . . . . . . . . . Miscellaneous 4 | . . 2 1 1 . . . . . . . . . Route ------- -11/Junkyard -10/Materials -10/Subcaves -8/Materials (discovered 2 exits: *Fac / [*Sto]) -7/Factory (discovered 4 exits: *Fac x2 / [*Low] / Gar) -7/Garrison (discovered 3 exits: *Fac x3) -6/Factory -5/Factory -5/DSF -4/Factory -4/Waste -4/Factory (discovered 4 exits: *Res / Upp x2 / Arm) -3/Research (discovered 2 exits: [*Res] / [*Tes]) -2/Research History --------- Turn | Location | Event 1 | -11/Junkyard | Discovered new exit (range 0) 1 | -11/Junkyard | Entered Materials 82 | -10/Materials | Discovered new exit (range 7) 102 | -10/Materials | Entered Subcaves 109 | -10/Subcaves | Shifting Twisted Machinery released Sub. Laser 109 | -10/Subcaves | Shifting Twisted Machinery released Battle Rifle 364 | -10/Subcaves | Learned location of Storage (-8) 562 | -10/Subcaves | Visited triangular shrine 574 | -10/Subcaves | Found Prototype Device 574 | -10/Subcaves | Identified V3-11A's Pendant 579 | -10/Subcaves | Befriended Subdweller 599 | -10/Subcaves | Build established: Subdweller-Mutant 652 | -10/Subcaves | Shifting Twisted Machinery released Humpback 654 | -10/Subcaves | Befriended Subdweller 654 | -10/Subcaves | Befriended Subdweller 656 | -10/Subcaves | Shifting Twisted Machinery released Battle Rifle 659 | -10/Subcaves | Befriended Subdweller 664 | -10/Subcaves | Befriended Subdweller 669 | -10/Subcaves | Discovered new exit (range 5) 688 | -10/Subcaves | Shifting Twisted Machinery released Spk. Treads 689 | -10/Subcaves | Shifting Twisted Machinery released Sub. Beam Cannon 789 | -10/Subcaves | Entered Materials 789 | -8/Materials | Accompanied by 5 allies 789 | -8/Materials | Evolved 4 slots: Utility x2, Weapon x2 948 | -8/Materials | Discovered new exit (range 11) 1078 | -8/Materials | Discovered new exit (range 15) 1083 | -8/Materials | Build established: Subdweller-Tank 1143 | -8/Materials | Entered Factory 1143 | -7/Factory | Accompanied by 2 allies 1143 | -7/Factory | Evolved 2 slots: Utility x2 1590 | -7/Factory | Build established: Scavenger-Tank 1930 | -7/Factory | Discovered new exit (range 15) 2009 | -7/Factory | Garrison activated, responded to threat 2103 | -7/Factory | Destroyed 8 combat bots 2106 | -7/Factory | Identified exit to Garrison 2415 | -7/Factory | Destroyed 13 combat bots 3047 | -7/Factory | Discovered new exit (range 14) 3107 | -7/Factory | Discovered new exit (range 16) 3402 | -7/Factory | Garrison activated, responded to threat 3550 | -7/Factory | Identified exit to Garrison 3550 | -7/Factory | Entered Garrison 3550 | -7/Garrison | Discovered recently destroyed garrison 3744 | -7/Garrison | Learned Factory security intel 3769 | -7/Garrison | Garrison Relay disabled 3996 | -7/Garrison | Discovered new exit (range 10) 4123 | -7/Garrison | Garrison Relay disabled 4240 | -7/Garrison | Attempted to access garrison exit controls, blocked by remote lockdown 4292 | -7/Garrison | Garrison Relay disabled 4416 | -7/Garrison | Phase Generator disabled 4796 | -7/Garrison | Identified exit to Factory 4814 | -7/Garrison | Garrison Relay disabled 4857 | -7/Garrison | Entered Factory 4857 | -6/Factory | Accompanied by 3 allies 4857 | -6/Factory | Evolved 2 slots: Power x1, Utility x1 4950 | -6/Factory | Discovered new exit (range 5) 5108 | -6/Factory | Local machine network offline 5191 | -6/Factory | Build established: Skirmisher 5557 | -6/Factory | First assault squad dispatched 5906 | -6/Factory | Entered another Factory area 5906 | -5/Factory | Evolved 2 slots: Weapon x2 6025 | -5/Factory | Identified exit to DSF 6027 | -5/Factory | Entered DSF 6096 | -5/DSF | Additional patrols routed to DSF 6321 | -5/DSF | Sterilization system engaged 6341 | -5/DSF | Ambient heat levels rising (+10) 6356 | -5/DSF | Ambient heat levels rising (+10) 6364 | -5/DSF | Found Prototype Device 6364 | -5/DSF | Identified Active Sensor Suite 6367 | -5/DSF | Lost 8 parts (1n3u4w) 6371 | -5/DSF | Ambient heat levels rising (+10) 6386 | -5/DSF | Ambient heat levels rising (+10) 6401 | -5/DSF | Ambient heat levels rising (+10) 6410 | -5/DSF | Discovered new exit (range 14) 6416 | -5/DSF | Ambient heat levels rising (+10) 6431 | -5/DSF | Ambient heat levels rising (+10) 6438 | -5/DSF | Identified exit to Factory 6440 | -5/DSF | Entered Factory 6440 | -4/Factory | Evolved 2 slots: Propulsion x1, Utility x1 6706 | -4/Factory | Garrison activated, responded to threat 6836 | -4/Factory | Lost 10 parts (1p1n3u5w) 6907 | -4/Factory | System corruption reached 10% 7078 | -4/Factory | Lost 4 parts (1p1n1u1w) 7110 | -4/Factory | Repaired Plasma Rifle 7190 | -4/Factory | First assault squad dispatched 7208 | -4/Factory | Sucked down chute 7208 | -4/Factory | Entered Waste 7218 | -4/Waste | Spotted C-40 Crusher 7229 | -4/Waste | Spotted C-40 Crusher 7234 | -4/Waste | Destroyed C-40 Crusher 7239 | -4/Waste | Destroyed C-40 Crusher 7265 | -4/Waste | Found Prototype Processor 7265 | -4/Waste | Identified Spectral Analyzer 7278 | -4/Waste | Spotted C-40 Crusher 7287 | -4/Waste | Destroyed C-40 Crusher 7288 | -4/Waste | Spotted C-40 Crusher 7292 | -4/Waste | Destroyed C-40 Crusher 7305 | -4/Waste | Spotted C-40 Crusher 7311 | -4/Waste | Destroyed C-40 Crusher 7325 | -4/Waste | Spotted C-40 Crusher 7329 | -4/Waste | Destroyed C-40 Crusher 7385 | -4/Waste | Discovered new exit (range 12) 7408 | -4/Waste | Build established: Scavenger-Executioner 7450 | -4/Waste | Warlord forces began an assault 7668 | -4/Waste | Entered Factory 7668 | -4/Factory | Accompanied by 19 allies 7959 | -4/Factory | First assault squad dispatched 8055 | -4/Factory | Destroyed 7 combat bots 8111 | -4/Factory | Identified exit to Upper Caves 8111 | -4/Factory | Identified exit to Armory 8418 | -4/Factory | Discovered new exit (range 15) 8894 | -4/Factory | Entered Research 8894 | -3/Research | Evolved 2 slots: Utility x1, Weapon x1 9077 | -3/Research | Discovered new exit (range 4) 9552 | -3/Research | Discovered new exit (range 24) 9797 | -3/Research | Found Gamma Bomb Array 10206 | -3/Research | System corruption reached 10% 10629 | -3/Research | Entered another Research area 10629 | -2/Research | Evolved 2 slots: Propulsion x1, Utility x1 10629 | -2/Research | Self-destructed Last Messages --------------- 10326_ System corrupted: Heat flow error (+247). 10352_ System corrupted: Matter fused (-9). 10352_ Dropped Mic. Antimatter Reactor. 10368_ System corrupted: Substantial component data lost. 10383_ P&8CHQ2>K:GORDQJQ:WQKGD2X 9E1T BNJU2ZDZ 10386_ Acquired Imp. Arc Projector. 10400_ System corrupted: Component data lost. 10428_ System corrupted: Substantial component data lost. 10454_ 10622_ RJQN&3GPXG VH#JGJQG OXD& PARAMETERS=PROPULSION+1,UTILITY+1 LOCATION=UNKNOWN GOAL=ESCAPE Map ----- +----------------------------------------------------+ | ?????????????????????????????????????????????????? | | ?????????????????????????????????????????????????? | | ?????????????????????????????????????????????????? | | ?????????????????????????????????????????????????? | | ?????????????????????????????????????????????????? | | ?????????????????????????????????????????????????? | | ?????????????????????????????????????????????????? | | ?????????????????????????????????????????????????? | | ?????????????????????????????????????????????????? | | ?????????????????????????????????????????????????? | | ?????????????????????????????????????????????????? | | ?????????????????????????????????????????????????? | | ?????????????????????????????????????????????????? | | ?????????????????????????????????????????????????? | | ?????????????????????????????????????????????????? | | ?????????????????????????????????????????????????? | | ?????????????????????????????????????????????????? | | ?????????????????????????????????????????????????? | | ?????????????????????????????????????????????????? | | ?????????????????????????????????????????????????? | | ?????????????????????????????????????????????????? | | ?????????????????????????????????????????????????? | | ?????????????????????????????????????????????????? | | ???????##########+######+####????????????????????? | | ?? #????????????????????? | | ?? @ #????????????????????? | | ?? #????????????????????? | | ??? #????????????????????? | | ?????#####+######+######+####????????????????????? | | ?????????????????????????????????????????????????? | | ?????????????????????????????????????????????????? | | ?????????????????????????????????????????????????? | | ?????????????????????????????????????????????????? | | ?????????????????????????????????????????????????? | | ?????????????????????????????????????????????????? | | ?????????????????????????????????????????????????? | | ?????????????????????????????????????????????????? | | ?????????????????????????????????????????????????? | | ?????????????????????????????????????????????????? | | ?????????????????????????????????????????????????? | | ?????????????????????????????????????????????????? | | ?????????????????????????????????????????????????? | | ?????????????????????????????????????????????????? | | ?????????????????????????????????????????????????? | | ?????????????????????????????????????????????????? | | ?????????????????????????????????????????????????? | | ?????????????????????????????????????????????????? | | ?????????????????????????????????????????????????? | | ?????????????????????????????????????????????????? | | ?????????????????????????????????????????????????? | +----------------------------------------------------+ Best States ------------- Heat Dissipation 138 Coolant Potential 50 Energy Generation 41 Energy Capacity 580 Matter Stores 300 Matter Capacity 300 Sight Range 24 Robot Scan Range 20 Terrain Scan Range 20 Terrain Scan Density 10 Jamming Range 14 Additional Mass Support 20 Armor Coverage 800 Resistance: KI 20 Resistance: TH 20 Resistance: EX 20 Resistance: EM 35 Resistance: I 20 Resistance: S 20 Resistance: P 20 Phase Shifting 15 Evasion (%) 55 Targeting Accuracy 8 Target Analysis 9 Offensive Hacking 10 Defensive Hacking 14 Item Schematics ----------------- Hpw. Field Laser | -7/Factory | Scanalyzed Robot Schematics ------------------ None Fabricated ------------ Nothing Alien Tech Used ----------------- None Achievements -------------- None Challenges ------------ None Game ------ Seed PlatingStealthUnit Manual? 0 Play Time 00:52:37 Cumulative 530.7 hours Start 2023.07.29 @ 10:58:43 End 2023.07.29 @ 14:05:36 Sessions 1 Manual Loads 0 Difficulty Adventurer Special Mode None Game No. 403 Rogue 167 Adventurer 93 Explorer 143 Win Type - Total 23 Types 19/0/3/0/0/0/0/1/0 Lore% 74 Gallery% 89 Achievement% 73 Wizard Run 0 Options --------- ASCII 0 Keyboard 1 Movement Numpad Keybinds 0 Fullscreen 2 Font 18/X11Bold Map View 76x50 Tactical HUD 1 Map Filters NONE Filters NONE Steam 1 RUN: 0465d74b-9a94-4249-9cf3-18227d645767